bitfinex/quotes_ETHUSD_20240828
["timestamp","ask_amount","ask_price","bid_price","bid_amount"]
[1724828542179,10.47168,2471.0,2470.5,5.762328]
[1724828542478,6.42465,2471.0,2470.5,5.762328]
[1724828543035,0.10118324,2471.1,2470.5,1.714578]
[1724828543242,6.76955138,2471.2,2470.7,4.04732]
[1724828543442,6.76953138,2471.2,2470.8,0.55]
[1724828543689,6.76952138,2471.2,2470.8,0.55]
[1724828543978,10.81626138,2471.2,2470.8,0.55]
[1724828544179,10.81626138,2471.2,2470.5,4.04775]
[1724828544180,4.04707,2471.0,2470.5,4.04775]
[1724828544486,4.14825323,2471.0,2470.6,0.954775]
[1724828545282,4.14825323,2471.0,2470.7,0.04532094]
[1724828547051,4.14825323,2471.0,2470.7,0.04532094]
[1724828547443,2.4825,2470.8,2470.7,0.04532094]
[1724828548180,2.4825,2470.8,2470.5,0.55]
[1724828548397,4.04713,2470.9,2470.7,0.04535822]
[1724828548599,4.14831446,2470.9,2470.5,0.55]
[1724828549076,0.10118446,2471.0,2470.6,4.09293822]
[1724828549279,0.10118446,2471.0,2470.6,4.96201604]
[1724828549606,4.14805442,2471.1,2470.6,4.96201604]
[1724828550853,4.14805442,2471.1,2470.6,9.00959604]
[1724828551050,4.14805442,2471.1,2470.6,4.96201604]
[1724828551592,4.14805442,2471.1,2470.6,9.00952604]
[1724828551762,4.14805442,2471.1,2470.6,9.00943604]
[1724828551968,4.14805442,2471.1,2470.6,9.00942604]
[1724828552200,4.14805442,2471.1,2470.6,4.96192604]
[1724828552355,4.14805442,2471.1,2470.6,9.00942604]
[1724828552784,0.42363138,2471.2,2470.8,8.09434]
[1724828552966,10.37116,2471.5,2470.7,1.03688911]
[1724828552967,2.2787,2471.5,2471.1,4.04666]
[1724828553181,2.38575732,2471.7,2471.2,4.5965]
[1724828553570,2.38575732,2471.7,2471.3,0.04508483]
[1724828553760,4.08714046,2471.6,2471.3,0.04508483]
[1724828553959,1.70207158,2471.4,2471.3,0.04508483]
[1724828555370,5.84951788,2471.4,2471.3,0.04508483]
[1724828555553,1.80323788,2471.4,2470.9,4.04703]
[1724828555757,1.80323788,2471.4,2471.3,0.04496058]
[1724828555956,1.80323788,2471.4,2471.0,0.55]
[1724828556260,1.70207158,2471.2,2470.7,4.45335]
[1724828556473,1.70207158,2471.0,2470.8,0.04457544]
[1724828556971,0.10117613,2470.9,2470.4,6.43781]
[1724828557177,1.70207158,2470.8,2470.5,0.32369802]
[1724828557381,1.70207158,2470.8,2470.3,4.89508019]
[1724828557382,1.70207158,2470.8,2470.3,4.04799]
[1724828557911,1.70207158,2470.6,2470.2,0.406]
[1724828558113,4.04755,2470.7,2470.2,0.406]
[1724828558313,4.14874502,2470.7,2470.2,0.406]
[1724828558479,4.14874502,2470.7,2470.2,4.45424]
[1724828559290,0.10119502,2470.8,2470.2,4.53519602]
[1724828559610,0.10119502,2470.8,2470.3,0.55]
[1724828559832,6.53857104,2471.0,2470.3,4.67893594]
[1724828560025,2.55208623,2471.0,2470.5,4.04774]
[1724828560526,6.59902623,2471.0,2470.6,0.04457544]
[1724828561054,6.59902623,2471.0,2470.7,0.04457544]
[1724828561186,6.59902623,2471.0,2470.5,0.55]
[1724828561391,8.07238396,2471.0,2470.6,0.04457544]
[1724828561936,4.02544396,2471.0,2470.6,0.04457544]
[1724828562099,2.55208623,2471.0,2470.6,0.04457544]
[1724828565925,6.59903623,2471.0,2470.6,0.04457544]
[1724828566432,6.59904623,2471.0,2470.6,0.04457544]
[1724828566613,2.55208623,2471.0,2470.6,0.04457544]
[1724828566790,6.59904623,2471.0,2470.6,0.04457544]
[1724828567947,2.55208623,2471.0,2470.6,0.04457544]
[1724828568348,2.3957,2471.3,2470.9,4.04709]
[1724828568575,2.3957,2471.3,2471.0,0.55]
[1724828568775,2.3957,2471.3,2471.0,0.59468728]
[1724828569245,2.3957,2471.3,2471.1,4.04674]
[1724828569472,2.3957,2471.3,2471.0,0.55]
[1724828569786,2.3957,2471.3,2471.1,0.04468728]
[1724828572386,2.3957,2471.3,2471.1,0.04379561]
[1724828572773,2.41706291,2471.5,2471.1,0.04379561]
[1724828572973,2.3159,2471.5,2471.1,0.51596421]
[1724828574731,2.3159,2471.5,2471.1,4.56270421]
[1724828575853,6.46320296,2471.5,2471.1,0.04379561]
[1724828576353,8.13407104,2471.4,2471.1,0.04379561]
[1724828576668,6.41617104,2471.2,2471.1,0.04379561]
[1724828577095,6.41617104,2471.2,2470.9,0.55]
[1724828577398,6.51734118,2471.2,2470.8,2.61771225]
[1724828577602,10.56400118,2471.2,2471.0,0.04388725]
[1724828577800,6.47633014,2471.2,2471.0,0.04388725]
[1724828578094,2.42967014,2471.2,2471.1,0.04242435]
[1724828578296,2.3285,2471.2,2470.8,2.61771225]
[1724828578507,2.3285,2471.2,2470.9,0.04242435]
[1724828579395,2.3285,2471.2,2470.9,0.59242435]
[1724828580066,1.70237791,2471.1,2470.9,0.59242435]
[1724828581956,2.2952,2471.0,2470.9,0.04242435]
[1724828582361,2.39637581,2471.0,2470.7,0.55]
[1724828582584,2.39637581,2471.0,2470.9,0.04242435]
[1724828582864,6.34218,2471.0,2470.9,0.04242435]
[1724828583189,3.99757791,2471.0,2470.7,0.55]
[1724828583387,2.2952,2471.0,2470.9,0.04242435]
[1724828583595,2.2952,2471.0,2470.2,0.406]
[1724828583596,4.04761,2470.6,2470.2,0.406]
[1724828583796,2.3163,2470.7,2470.2,4.45424]
[1724828583797,1.70237791,2470.5,2470.2,4.45424]
[1724828583994,8.16730976,2470.7,2470.3,0.445433]
[1724828584381,4.01867791,2470.7,2470.3,8.62248641]
[1724828584681,4.01867791,2470.7,2470.4,4.04792]
[1724828584682,1.70237791,2470.7,2470.4,4.04792]
[1724828585415,4.04797791,2470.9,2470.5,4.04767]
[1724828585705,4.04797791,2470.9,2470.5,8.64532]
[1724828587634,4.04797791,2470.9,2470.5,4.59765]
[1724828587838,4.04797791,2470.9,2470.5,4.678594]
[1724828588836,4.04797791,2470.9,2470.2,0.406]
[1724828588837,1.70237791,2470.7,2470.2,0.406]
[1724828589044,5.85104985,2470.7,2470.2,4.45416]
[1724828589195,5.85104985,2470.7,2470.3,3.0]
[1724828589921,9.89859985,2470.7,2470.3,3.0]
[1724828590232,1.70237791,2470.5,2470.4,0.04303308]
[1724828592547,7.06372671,2470.5,2470.4,0.04303308]
[1724828592835,4.04832,2470.2,2469.7,4.04897]
[1724828593011,4.04832,2470.2,2469.5,7.7195389]
[1724828593012,1.70237791,2469.8,2469.5,7.7195389]
[1724828593213,1.70237791,2469.8,2469.5,5.92892051]
[1724828593541,0.10120814,2470.1,2469.2,0.8478989]
[1724828593542,1.70237791,2469.6,2469.2,0.8478989]
[1724828593698,1.70237791,2469.6,2469.3,7.97970207]
[1724828594021,1.70237791,2469.4,2469.2,0.406]
[1724828594341,1.70237791,2469.4,2469.0,4.8980489]
[1724828594342,1.70237791,2469.4,2469.0,8.10025]
[1724828594696,1.70237791,2469.4,2469.1,0.406]
[1724828595032,1.70237791,2469.4,2469.1,1.256624]
[1724828595235,1.70237791,2469.4,2469.1,4.256624]
[1724828595408,1.70237791,2469.4,2469.1,8.306574]
[1724828595616,1.70237791,2469.4,2469.2,4.04988]
[1724828596133,2.2582,2469.9,2469.4,4.04955]
[1724828596438,10.35579,2469.9,2469.4,4.13052769]
[1724828596595,10.35579,2469.9,2469.5,0.55]
[1724828596793,10.35579,2469.9,2469.4,0.55]
[1724828597000,6.30695,2469.9,2469.4,0.55]
[1724828598441,6.30695,2469.9,2469.4,4.59956]
[1724828598640,6.30695,2469.9,2469.4,5.25950329]
[1724828598938,6.30695,2469.9,2469.5,0.08097774]
[1724828599142,6.30695,2469.9,2469.6,0.55]
[1724828599839,4.09058917,2470.0,2469.6,0.55]
[1724828600042,4.09058917,2470.0,2469.6,5.3647891]
[1724828601340,4.09058917,2470.0,2469.6,4.59921]
[1724828603334,8.13919917,2470.0,2469.6,0.55]
[1724828603736,8.13919917,2470.0,2469.5,0.55]
[1724828603943,8.13919917,2470.0,2469.5,1.49586265]
[1724828604923,8.13919917,2470.0,2469.5,5.54525265]
[1724828605247,8.13919917,2470.0,2469.6,0.04275996]
[1724828605907,4.09058917,2470.0,2469.6,4.09194996]
[1724828606117,4.09058917,2470.0,2469.7,0.55]
[1724828606515,4.09058917,2470.0,2469.8,0.04275996]
[1724828606733,4.09058917,2470.0,2469.7,0.55]
[1724828606919,4.09058917,2470.0,2469.9,0.04275996]
[1724828607124,4.09058917,2470.0,2469.7,0.55]
[1724828607322,4.09058917,2470.0,2469.9,0.04275996]
[1724828607510,4.09058917,2470.0,2469.7,0.55]
[1724828607706,4.09058917,2470.0,2469.9,0.04275996]
[1724828607909,4.09058917,2470.0,2469.7,0.55]
[1724828608146,4.09058917,2470.0,2469.9,0.04275996]
[1724828608347,4.09058917,2470.0,2469.7,0.55]
[1724828608845,4.09058917,2470.0,2469.8,0.04275996]
[1724828609056,4.09058917,2470.0,2469.7,0.55]
[1724828609224,4.09058917,2470.0,2469.9,0.04275996]
[1724828609419,4.09058917,2470.0,2469.7,0.55]
[1724828609625,4.09058917,2470.0,2469.8,0.04275996]
[1724828609813,4.09058917,2470.0,2469.7,0.55]
[1724828610012,4.09058917,2470.0,2469.8,0.04275996]
[1724828610409,4.09058917,2470.0,2469.7,0.55]
[1724828610605,10.60842917,2470.4,2469.9,4.04874]
[1724828610823,4.09058917,2470.2,2470.0,0.55]
[1724828611126,4.09058917,2470.2,2470.0,0.59275996]
[1724828611336,4.09058917,2470.2,2470.0,0.04275996]
[1724828613318,6.61441693,2470.1,2470.0,0.04275996]
[1724828613505,6.51321,2470.1,2470.0,0.04275996]
[1724828614152,6.61442517,2470.1,2470.0,0.04275996]
[1724828615046,10.66283517,2470.1,2470.0,0.04275996]
[1724828615345,4.04936,2469.6,2469.2,0.406]
[1724828615551,8.13998917,2469.5,2469.1,0.406]
[1724828615747,4.05,2469.2,2468.7,4.05055]
[1724828615957,4.05,2469.2,2468.7,8.10117]
[1724828616257,4.09058917,2469.3,2468.8,4.05044]
[1724828616426,4.04965,2469.4,2468.9,0.850699]
[1724828616745,6.41165,2469.6,2469.1,4.0499]
[1724828616746,2.3623,2469.6,2469.1,4.0499]
[1724828616907,2.3623,2469.6,2469.2,0.08098601]
[1724828617111,2.3623,2469.6,2469.2,0.63098601]
[1724828617312,2.3623,2469.6,2469.3,0.08098601]
[1724828617512,2.3623,2469.6,2469.4,0.55]
[1724828617946,4.09058917,2469.7,2469.4,0.55]
[1724828618135,1.70449111,2469.5,2469.4,0.55]
[1724828618524,1.70449111,2469.6,2469.4,0.55]
[1724828618725,1.70449111,2469.7,2469.5,4.1302933]
[1724828618930,1.70449111,2469.7,2469.6,0.55]
[1724828620127,1.70449111,2469.7,2469.6,0.59082281]
[1724828621247,1.70449111,2469.7,2469.6,4.64005281]
[1724828621449,1.70449111,2469.9,2469.6,5.51711142]
[1724828621755,1.70449111,2469.9,2469.7,4.1299132]
[1724828621938,1.70449111,2469.9,2469.8,0.55]
[1724828622140,6.36627,2470.2,2469.8,0.55]
[1724828622141,10.4557574,2470.2,2469.8,0.55]
[1724828622454,6.4073874,2470.2,2469.8,5.68130103]
[1724828623260,10.4556474,2470.2,2469.8,1.63241103]
[1724828623461,10.4556474,2470.2,2469.8,0.59082281]
[1724828623876,14.5039974,2470.2,2469.8,0.59082281]
[1724828624033,14.5039974,2470.2,2469.8,0.04082281]
[1724828624237,14.5039974,2470.2,2469.7,0.63096975]
[1724828624238,10.4556474,2470.2,2469.7,0.63096975]
[1724828624569,14.5040074,2470.2,2469.8,0.04071091]
[1724828624726,10.4556474,2470.2,2469.8,0.04071091]
[1724828624927,10.4556474,2470.2,2469.8,0.08096974]
[1724828625155,10.4556474,2470.2,2469.9,0.59071091]
[1724828629382,2.3179,2470.2,2469.9,0.59071091]
[1724828629681,8.1371874,2470.6,2470.1,4.04832]
[1724828630275,8.1371874,2470.6,2470.2,0.04071091]
[1724828630638,12.1849074,2470.6,2470.2,0.04071091]
[1724828630859,12.1848774,2470.6,2470.2,0.04071091]
[1724828631071,9.58197514,2470.6,2470.2,0.04071091]
[1724828632477,4.0894874,2470.4,2470.2,0.04071091]
[1724828632859,2.361,2470.3,2469.9,0.55]
[1724828633079,4.0894874,2470.1,2469.8,7.37]
[1724828633285,4.19070834,2470.1,2469.7,4.04895]
[1724828633446,4.0894874,2470.1,2469.8,0.55]
[1724828633647,6.55169971,2470.3,2469.9,4.04866]
[1724828634070,4.0894874,2470.3,2469.9,4.04866]
[1724828634280,6.4504874,2470.5,2470.1,4.04838]
[1724828634484,6.4504874,2470.5,2470.2,0.55]
[1724828635167,6.4504874,2470.5,2470.3,0.04047473]
[1724828635371,4.0894874,2470.4,2470.3,0.04047473]
[1724828635572,4.19069079,2470.4,2470.3,0.04047473]
[1724828635950,4.0894874,2470.4,2470.3,0.04047473]
[1724828636150,4.0894874,2470.4,2470.1,0.55]
[1724828636349,4.0894874,2470.4,2470.3,0.04026341]
[1724828636582,4.0894874,2470.4,2470.1,4.59833]
[1724828636784,4.0894874,2470.4,2470.3,0.04028827]
[1724828636993,4.0894874,2470.4,2470.1,4.59833]
[1724828637192,4.0894874,2470.4,2470.3,0.04028827]
[1724828637691,4.0894874,2470.4,2470.1,4.59833]
[1724828637857,4.0894874,2470.4,2470.3,0.04028827]
[1724828638190,5.13929614,2470.4,2470.1,0.55]
[1724828638373,5.13929614,2470.4,2470.3,0.04028827]
[1724828638687,9.18722614,2470.4,2470.3,0.04028827]
[1724828638886,9.28842954,2470.4,2470.1,0.55]
[1724828639194,9.28842954,2470.4,2470.3,0.04020126]
[1724828639366,9.28842954,2470.4,2470.1,0.55]
[1724828639570,9.28842954,2470.4,2470.3,0.04020126]
[1724828640052,9.28842954,2470.4,2470.1,0.55]
[1724828640249,9.28842954,2470.4,2470.2,0.04020126]
[1724828640850,5.21303295,2470.3,2470.2,0.04020126]
[1724828641099,4.04829,2470.2,2469.8,7.37]
[1724828641253,4.04829,2470.2,2469.6,11.09826]
[1724828641254,8.23899347,2470.2,2469.6,11.09826]
[1724828641451,8.23899347,2470.2,2469.7,3.0]
[1724828642079,2.3004,2469.9,2469.5,7.776]
[1724828642577,2.3004,2469.9,2469.5,11.8253]
[1724828642788,2.3004,2469.9,2469.6,4.04917]
[1724828643296,6.34915,2469.9,2469.5,7.776]
[1724828643591,6.34915,2469.9,2469.6,0.55]
[1724828643792,2.3004,2469.9,2469.6,0.55]
[1724828644659,2.3004,2469.9,2469.6,4.59914]
[1724828644970,4.0894874,2470.0,2469.6,5.504584]
[1724828645381,5.21313295,2470.3,2469.8,4.0488]
[1724828645382,4.0894874,2470.2,2469.8,4.0488]
[1724828645602,4.19070365,2470.2,2469.7,4.04903]
[1724828645761,4.19070365,2470.2,2469.8,0.55]
[1724828646456,8.23900365,2470.2,2469.8,0.55]
[1724828646997,4.19070365,2470.2,2469.8,0.55]
[1724828648661,4.19070365,2470.2,2469.8,4.59886]
[1724828648975,6.38063,2471.0,2470.3,4.04804]
[1724828649177,4.04755,2470.7,2470.2,7.37]
[1724828649385,6.52428543,2470.6,2470.2,7.37]
[1724828649690,6.52428543,2470.6,2470.3,0.55]
[1724828650063,1.70336109,2470.4,2470.3,0.55]
[1724828650600,1.70336109,2470.4,2470.2,0.55]
[1724828650911,1.70336109,2470.4,2470.2,5.003081]
[1724828652104,2.3336,2470.6,2470.2,5.003081]
[1724828654609,2.3336,2470.6,2470.2,0.954831]
[1724828654771,2.3336,2470.6,2470.3,4.04807]
[1724828654973,8.09445,2470.9,2470.5,4.04767]
[1724828654974,2.374,2470.9,2470.5,4.04767]
[1724828655169,2.374,2470.9,2470.6,4.04751]
[1724828655376,2.374,2470.9,2470.5,4.04767]
[1724828655605,2.374,2470.9,2470.5,8.09535]
[1724828656676,2.374,2470.9,2470.5,4.04767]
[1724828657187,2.374,2470.9,2470.5,8.09532]
[1724828658474,2.374,2470.9,2470.5,8.09531]
[1724828658873,2.374,2470.9,2470.5,8.09533]
[1724828661008,2.4675,2471.1,2470.6,0.6309498]
[1724828661212,2.4675,2471.1,2470.8,4.04718]
[1724828662411,4.18880659,2471.2,2470.9,4.04708]
[1724828662612,0.10117739,2471.2,2470.9,4.04708]
[1724828662827,2.3445,2471.3,2471.1,4.04678]
[1724828665102,2.3445,2471.3,2471.2,0.03943092]
[1724828665514,6.55159696,2471.4,2471.1,4.04674]
[1724828665703,6.55159696,2471.4,2471.2,0.03943092]
[1724828667202,6.4504292,2471.4,2471.2,0.03943092]
[1724828667808,6.4504292,2471.4,2471.1,4.59675]
[1724828668021,6.4504292,2471.4,2471.3,0.03943092]
[1724828668221,6.4504292,2471.4,2471.1,4.59675]
[1724828668536,6.4504292,2471.4,2471.2,0.03943092]
[1724828670421,6.55159299,2471.4,2471.2,0.03943092]
[1724828670796,6.55159299,2471.4,2471.0,0.55]
[1724828671042,6.55159299,2471.4,2471.3,0.03822559]
[1724828671241,6.55159299,2471.4,2471.0,0.55]
[1724828671441,6.4504292,2471.4,2471.3,0.03822559]
[1724828671589,6.4504292,2471.4,2471.0,4.59691]
[1724828672136,6.4504292,2471.4,2471.1,0.03822559]
[1724828672736,6.4504292,2471.4,2471.1,4.08498559]
[1724828672907,2.3628,2471.4,2471.1,4.95318315]
[1724828674149,1.70206109,2471.3,2471.1,4.95318315]
[1724828675649,1.70206109,2471.3,2471.1,4.08498559]
[1724828676450,1.70206109,2471.3,2471.1,8.13174559]
[1724828676650,1.70206109,2471.3,2471.1,4.08498559]
[1724828676842,1.70206109,2471.3,2471.1,8.13166559]
[1724828677040,1.70206109,2471.3,2471.1,8.13159559]
[1724828677238,1.70206109,2471.3,2471.1,4.08490559]
[1724828677762,2.4073,2471.6,2471.1,5.20627919]
[1724828677942,1.70206109,2471.5,2471.2,0.63092378]
[1724828678145,1.70206109,2471.5,2471.3,4.08443412]
[1724828678348,1.70206109,2471.5,2471.3,5.07277527]
[1724828678642,1.70206109,2471.4,2471.3,5.07277527]
[1724828678844,1.70206109,2471.5,2471.3,5.62277527]
[1724828679155,1.70206109,2471.5,2471.3,5.07277527]
[1724828679359,2.4073,2471.6,2471.4,0.61727753]
[1724828679515,1.70206109,2471.6,2471.4,0.61727753]
[1724828679720,1.70206109,2471.6,2471.5,0.03806412]
[1724828680348,2.38465472,2471.8,2471.5,0.03806412]
[1724828680537,1.70206109,2471.7,2471.5,0.58806412]
[1724828681234,1.70206109,2471.6,2471.5,0.58806412]
[1724828681432,4.3918172,2471.6,2471.5,0.03806412]
[1724828681637,12.18634484,2471.6,2471.5,0.03806412]
[1724828681953,8.14038484,2471.6,2471.5,0.03806412]
[1724828682144,4.04615,2471.5,2471.0,11.41694]
[1724828682356,1.70206109,2471.2,2471.1,0.55]
[1724828682567,1.70206109,2471.2,2471.0,7.59685]
[1724828682739,2.2912,2471.6,2471.2,4.04649]
[1724828682935,1.70206109,2471.5,2471.3,0.55]
[1724828683440,1.70206109,2471.5,2471.2,0.55]
[1724828683769,1.70206109,2471.5,2471.2,5.90424856]
[1724828683939,1.70206109,2471.5,2471.2,5.98517268]
[1724828685332,1.70206109,2471.5,2471.2,5.90424856]
[1724828686773,1.70206109,2471.5,2471.2,5.98517268]
[1724828687275,1.70206109,2471.5,2471.3,4.04644]
[1724828687631,2.2516,2471.8,2471.4,4.04628]
[1724828687930,1.70206109,2471.6,2471.5,0.55]
[1724828691777,2.2516,2471.8,2471.5,0.55]
[1724828691945,1.70206109,2471.7,2471.5,0.55]
[1724828694186,1.70206109,2471.7,2471.5,4.59612]
[1724828694475,1.70206109,2471.7,2471.5,0.55]
[1724828695252,1.70206109,2471.7,2471.6,0.03766668]
[1724828696782,2.2516,2471.8,2471.6,0.03766668]
[1724828697081,1.70206109,2471.7,2471.6,0.03766668]
[1724828702260,2.78448562,2472.0,2471.8,4.04554]
[1724828702461,4.06276109,2472.0,2471.8,4.04554]
[1724828702665,1.70206109,2472.0,2471.9,0.03765424]
[1724828704384,1.70206109,2472.1,2471.9,0.03765424]
[1724828705106,4.18946109,2472.2,2471.9,4.71391317]
[1724828705262,1.70206109,2472.1,2471.9,9.23067449]
[1724828705472,1.70206109,2472.1,2471.9,5.18530449]
[1724828706007,8.18998696,2472.0,2471.9,0.03765424]
[1724828706234,4.04564,2471.8,2471.3,7.0463]
[1724828706527,1.70206109,2471.5,2471.3,3.0]
[1724828706710,1.70206109,2471.5,2471.3,6.336987]
[1724828707892,1.70206109,2471.7,2471.4,4.04619]
[1724828708082,1.70206109,2471.7,2471.5,1.45105197]
[1724828708280,1.70206109,2471.9,2471.5,5.49714197]
[1724828708584,1.70206109,2471.9,2471.5,5.57805209]
[1724828708897,1.70206109,2471.9,2471.6,0.55]
[1724828709108,1.70206109,2471.9,2471.6,5.24929521]
[1724828709431,1.70206109,2471.9,2471.6,5.33020563]
[1724828709779,1.70206109,2471.9,2471.7,4.04576]
[1724828709983,8.127277,2472.3,2471.8,4.63255164]
[1724828710197,2.3966,2472.2,2471.8,5.65471618]
[1724828714934,4.082447,2472.4,2471.9,4.04534]
[1724828715237,6.459047,2472.4,2472.0,5.60180749]
[1724828717027,6.56017106,2472.4,2472.0,5.60180749]
[1724828717331,10.60483106,2472.4,2472.0,1.55651749]
[1724828717830,10.60483106,2472.4,2472.0,0.58651187]
[1724828718138,10.60483106,2472.4,2472.1,0.55]
[1724828718341,10.60483106,2472.4,2472.0,0.03651187]
[1724828718641,10.60483106,2472.4,2472.1,0.03651187]
[1724828719006,10.60483106,2472.4,2471.9,0.55]
[1724828719203,10.60483106,2472.4,2472.0,0.03651187]
[1724828722343,6.52238406,2472.4,2472.0,0.03651187]
[1724828731826,6.52238406,2472.4,2472.0,0.10757594]
[1724828732046,1.7007569,2472.3,2472.1,0.55]
[1724828732371,1.7007569,2472.3,2472.2,0.10758836]
[1724828735729,4.04385,2472.9,2472.2,0.10758836]
[1724828735730,8.0375369,2472.8,2472.2,4.6227362]
[1724828736042,8.0375369,2472.8,2472.3,4.5948]
[1724828736043,1.7007569,2472.6,2472.3,4.5948]
[1724828736266,1.7007569,2472.6,2472.4,0.98164307]
[1724828736473,1.7007569,2472.6,2472.5,0.55]
[1724828736990,1.7007569,2472.6,2472.5,0.65691823]
[1724828737160,8.2312769,2472.6,2472.5,0.10691823]
[1724828737587,8.2312769,2472.6,2472.1,4.45079]
[1724828737790,8.2312769,2472.6,2472.5,0.10691823]
[1724828737994,8.2312769,2472.6,2472.2,0.55]
[1724828738196,4.1869569,2472.6,2472.5,0.10691823]
[1724828739082,1.7007569,2472.8,2472.3,2.3332]
[1724828739258,4.28806382,2472.9,2472.5,0.10691823]
[1724828739458,4.28806382,2472.9,2472.4,4.34094915]
[1724828739459,1.7007569,2472.7,2472.4,4.34094915]
[1724828739769,1.7007569,2472.7,2472.6,0.10691823]
[1724828739997,1.7007569,2472.7,2472.4,0.29640915]
[1724828740164,4.04405,2472.8,2472.6,0.10691823]
[1724828740400,0.10110699,2472.7,2472.4,0.29640915]
[1724828740568,2.4862,2472.6,2472.5,0.55]
[1724828740769,0.10110699,2472.7,2472.3,0.692807]
[1724828740999,0.10110699,2472.7,2472.4,0.55]
[1724828741505,0.10110699,2472.7,2472.3,0.55]
[1724828741683,1.7007569,2472.6,2472.3,0.995067]
[1724828742869,1.7007569,2472.6,2472.3,5.039867]
[1724828743919,1.7007569,2472.6,2472.3,0.995067]
[1724828744067,1.7007569,2472.6,2472.3,0.55]
[1724828746409,1.7007569,2472.6,2472.3,4.67567589]
[1724828746609,1.7007569,2472.6,2472.3,0.55]
[1724828747708,0.10110699,2472.7,2472.4,2.2878]
[1724828747871,0.10110699,2472.7,2472.5,1.24634059]
[1724828748074,0.10110699,2472.7,2472.5,0.55]
[1724828749685,1.80186405,2472.9,2472.5,0.55]
[1724828749885,5.84580405,2472.9,2472.5,0.55]
[1724828750294,4.04401,2472.8,2472.5,0.55]
[1724828750497,1.7007569,2472.6,2472.4,0.55]
[1724828750709,1.7007569,2472.5,2472.4,0.55]
[1724828751312,1.80186571,2472.5,2472.2,0.4058]
[1724828751624,0.42354873,2473.1,2472.0,7.37]
[1724828751625,1.7007569,2472.3,2472.0,7.37]
[1724828751827,1.7007569,2472.3,2472.1,0.8234103]
[1724828752120,6.30235,2472.4,2472.0,4.04529]
[1724828752121,2.2576,2472.4,2472.0,4.04529]
[1724828752284,1.7007569,2472.5,2472.0,4.45101]
[1724828752480,1.7007569,2472.5,2472.1,0.445101]
[1724828752718,1.7007569,2472.5,2472.2,4.59495]
[1724828753022,2.3237,2472.6,2472.2,4.59495]
[1724828753190,4.0244569,2472.6,2472.2,4.59495]
[1724828753996,8.0687969,2472.6,2472.2,0.55]
[1724828755069,8.0687969,2472.6,2472.3,0.10528499]
[1724828755242,8.0687969,2472.6,2472.4,0.55]
[1724828755528,8.0687969,2472.6,2472.2,0.55]
[1724828755692,8.0687969,2472.6,2472.5,0.10528499]
[1724828755895,5.7450969,2472.6,2472.2,2.8221]
[1724828756212,5.7450969,2472.6,2472.2,3.77930927]
[1724828756419,5.7450969,2472.6,2472.3,0.10528499]
[1724828757201,2.4745,2472.5,2472.3,0.10528499]
[1724828758122,5.7454069,2472.4,2472.3,0.10528499]
[1724828758328,5.84653016,2472.4,2472.3,0.10528499]
[1724828758689,5.84653016,2472.4,2472.0,0.4058]
[1724828758900,5.84653016,2472.4,2472.3,0.10568198]
[1724828759198,1.80188016,2472.4,2472.3,0.10568198]
[1724828759405,4.04496,2472.3,2471.9,0.4058]
[1724828759609,5.84687589,2472.2,2472.0,0.10585569]
[1724828759814,4.04514,2472.1,2472.0,0.10585569]
[1724828760020,5.7457469,2472.2,2472.0,0.10585569]
[1724828760021,9.7908069,2472.2,2472.0,0.10585569]
[1724828760302,5.7457469,2472.2,2472.0,0.10585569]
[1724828760710,9.7908269,2472.2,2472.0,0.10585569]
[1724828761148,4.04514,2472.1,2472.0,0.10585569]
[1724828761342,4.04514,2472.1,2472.0,0.65585569]
[1724828761503,4.04514,2472.1,2472.0,0.55]
[1724828761704,4.04514,2472.1,2471.7,10.37]
[1724828761705,6.3565,2472.0,2471.7,10.37]
[1724828761926,8.0572569,2472.0,2471.8,0.55]
[1724828762130,12.1026769,2472.0,2471.8,0.55]
[1724828762612,4.04547,2471.9,2471.8,0.55]
[1724828763010,4.04609,2471.6,2471.2,0.84667845]
[1724828763218,4.04628,2471.4,2471.1,11.50958839]
[1724828763415,4.04628,2471.4,2471.2,2.92585219]
[1724828763623,4.04628,2471.4,2471.2,1.51728061]
[1724828763624,1.7007569,2471.3,2471.2,1.51728061]
[1724828764141,1.7007569,2471.3,2471.1,11.06870994]
[1724828764142,4.04661,2471.2,2471.1,11.06870994]
[1724828764349,4.04661,2471.2,2471.1,10.66290994]
[1724828764639,8.1871069,2471.3,2471.1,10.66290994]
[1724828764944,8.1871069,2471.3,2471.1,11.32274871]
[1724828765145,8.1871069,2471.3,2471.1,3.95274871]
[1724828765146,4.04661,2471.2,2471.1,3.95274871]
[1724828765351,4.04661,2471.2,2471.1,3.29290994]
[1724828766363,8.19438504,2471.2,2471.1,3.29290994]
[1724828768061,4.04639,2471.4,2471.1,3.29290994]
[1724828768565,4.14755486,2471.4,2471.1,3.29290994]
[1724828769557,4.04639,2471.4,2471.1,3.29290994]
[1724828769721,8.09281,2471.4,2471.1,3.29290994]
[1724828769917,6.40455,2471.5,2471.1,3.29290994]
[1724828770144,6.40455,2471.5,2471.2,0.1055425]
[1724828770474,6.50571446,2471.5,2471.2,0.1055425]
[1724828770960,6.46295,2471.8,2471.2,6.4231625]
[1724828771262,4.04596,2471.6,2471.3,0.55]
[1724828771416,4.04596,2471.6,2471.4,0.10539346]
[1724828771417,6.40145,2471.5,2471.4,0.10539346]
[1724828771626,6.40145,2471.5,2471.4,0.65539346]
[1724828772764,10.54875444,2471.5,2471.4,0.10539346]
[1724828772918,14.63408412,2471.5,2471.4,0.10539346]
[1724828773121,4.04649,2471.3,2471.1,3.29290994]
[1724828774192,6.50260444,2471.5,2471.1,3.29290994]
[1724828774193,10.54888444,2471.5,2471.1,3.29290994]
[1724828774344,6.50260444,2471.5,2471.2,0.55]
[1724828774537,6.40145,2471.5,2471.2,0.55]
[1724828774851,6.39145,2471.5,2471.2,1.44967009]
[1724828775453,4.03615,2471.5,2471.2,1.44967009]
[1724828778782,6.49617,2471.7,2471.2,1.44967009]
[1724828778942,6.49617,2471.7,2471.3,0.59303785]
[1724828779139,10.54212,2471.7,2471.4,0.55]
[1724828779376,6.49617,2471.7,2471.4,0.55]
[1724828779591,4.04567,2471.8,2471.4,0.55]
[1724828779878,6.44498,2471.9,2471.4,0.55]
[1724828779879,4.0458,2471.7,2471.4,0.76236315]
[1724828780248,4.04652,2471.3,2471.1,3.29290994]